[Event "Live Chess"]
[Site "Chess.com"]
[Date "2024.06.01"]
[Round "-"]
[White "nitrofish07"]
[Black "degringolade64"]
[Result "0-1"]
[WhiteElo "2115"]
[BlackElo "2106"]
[TimeControl "300"]
[EndTime "12:24:52 PDT"]
[Termination "degringolade64 won by resignation"]

1. d4 {[%clk 0:04:59.1]} 1... Nf6 {[%clk 0:04:57.8]} 2. c4 {[%clk 0:04:58.7]}
2... e6 {[%clk 0:04:56.1]} 3. g3 {[%clk 0:04:55.2]} 3... d5 {[%clk 0:04:51.4]}
4. Bg2 {[%clk 0:04:54.5]} 4... dxc4 {[%clk 0:04:47.1]} 5. Nf3 {[%clk 0:04:50.9]}
5... a6 {[%clk 0:04:44.9]} 6. a4 {[%clk 0:04:49.5]} 6... Nc6 {[%clk 0:04:41]} 7.
O-O {[%clk 0:04:47.5]} 7... Rb8 {[%clk 0:04:37.6]} 8. Qc2 {[%clk 0:04:33.3]}
8... Nxd4 {[%clk 0:04:25.9]} 9. Nxd4 {[%clk 0:04:33.2]} 9... Qxd4 {[%clk
0:04:24.4]} 10. Be3 {[%clk 0:04:31.5]} 10... Qg4 {[%clk 0:04:20.6]} 11. h3
{[%clk 0:04:23.5]} 11... Qf5 {[%clk 0:04:18.9]} 12. Qxc4 {[%clk 0:04:13.7]}
12... Bd6 {[%clk 0:04:14.4]} 13. Nc3 {[%clk 0:04:10.2]} 13... O-O {[%clk
0:04:11.7]} 14. Rad1 {[%clk 0:04:06.3]} 14... b5 {[%clk 0:03:54.1]} 15. axb5
{[%clk 0:03:57.1]} 15... axb5 {[%clk 0:03:54]} 16. Qb3 {[%clk 0:03:50.6]} 16...
b4 {[%clk 0:03:41.2]} 17. Ba7 {[%clk 0:03:47.3]} 17... Rb5 {[%clk 0:03:31.7]}
18. Nxb5 {[%clk 0:03:44.9]} 18... Qxb5 {[%clk 0:03:30.3]} 19. Be3 {[%clk
0:03:40.6]} 19... Qxe2 {[%clk 0:03:25.5]} 20. Bg5 {[%clk 0:03:34.5]} 20... Ba6
{[%clk 0:03:19.9]} 21. Bxf6 {[%clk 0:03:32.9]} 21... gxf6 {[%clk 0:03:19.8]} 22.
Rfe1 {[%clk 0:03:30.2]} 22... Qh5 {[%clk 0:03:09.6]} 23. Qf3 {[%clk 0:03:27.9]}
23... Qg6 {[%clk 0:02:48.3]} 24. Qe4 {[%clk 0:03:26.9]} 24... f5 {[%clk
0:02:47.2]} 25. Qc2 {[%clk 0:03:18.4]} 25... Rb8 {[%clk 0:02:43.2]} 26. b3
{[%clk 0:03:15.4]} 26... Rb5 {[%clk 0:02:24.7]} 27. Bf1 {[%clk 0:03:12.2]} 27...
Rc5 {[%clk 0:02:17.9]} 28. Qa2 {[%clk 0:03:00]} 28... Bxf1 {[%clk 0:02:15.6]}
29. Rxf1 {[%clk 0:02:59.4]} 29... Rc3 {[%clk 0:02:13.4]} 30. Kh2 {[%clk
0:02:30.5]} 30... f4 {[%clk 0:00:56.1]} 31. g4 {[%clk 0:02:28.2]} 31... f3+
{[%clk 0:00:54.9]} 32. Kh1 {[%clk 0:02:25.6]} 32... Qh6 {[%clk 0:00:52.3]} 33.
Qa8+ {[%clk 0:01:55.4]} 33... Kg7 {[%clk 0:00:50.7]} 34. Qxf3 {[%clk 0:01:55.3]}
34... Rxf3 {[%clk 0:00:48.3]} 0-1

[Event "Live Chess"]
[Site "Chess.com"]
[Date "2024.06.01"]
[Round "-"]
[White "Bob2pen"]
[Black "Colm_Buckley"]
[Result "1/2-1/2"]
[WhiteElo "1918"]
[BlackElo "1857"]
[TimeControl "300"]
[EndTime "12:24:55 PDT"]
[Termination "Game drawn by repetition"]

1. c4 {[%clk 0:04:56.8]} 1... e6 {[%clk 0:04:57.4]} 2. g3 {[%clk 0:04:55.6]}
2... d5 {[%clk 0:04:56.9]} 3. Bg2 {[%clk 0:04:54.9]} 3... c6 {[%clk 0:04:55.3]}
4. Nf3 {[%clk 0:04:53.7]} 4... dxc4 {[%clk 0:04:53.6]} 5. O-O {[%clk 0:04:51.9]}
5... Nf6 {[%clk 0:04:51.8]} 6. a4 {[%clk 0:04:50.4]} 6... a6 {[%clk 0:04:50.3]}
7. Na3 {[%clk 0:04:49.1]} 7... Bxa3 {[%clk 0:04:47.9]} 8. Rxa3 {[%clk
0:04:47.8]} 8... O-O {[%clk 0:04:39.2]} 9. Qc2 {[%clk 0:04:42.7]} 9... b5 {[%clk
0:04:34.2]} 10. axb5 {[%clk 0:04:40.9]} 10... cxb5 {[%clk 0:04:33]} 11. Nd4
{[%clk 0:04:39.5]} 11... Ra7 {[%clk 0:04:28]} 12. Nxb5 {[%clk 0:04:36.3]} 12...
Rd7 {[%clk 0:04:11.5]} 13. Nc3 {[%clk 0:04:24.5]} 13... Bb7 {[%clk 0:04:03.4]}
14. Bxb7 {[%clk 0:04:21.2]} 14... Rxb7 {[%clk 0:04:01]} 15. Ne4 {[%clk
0:04:19.9]} 15... Nxe4 {[%clk 0:03:51.9]} 16. Qxe4 {[%clk 0:04:16.9]} 16... Qd5
{[%clk 0:03:49.5]} 17. Qxd5 {[%clk 0:04:06.1]} 17... exd5 {[%clk 0:03:47.9]} 18.
d3 {[%clk 0:04:05.3]} 18... Re8 {[%clk 0:03:38.4]} 19. dxc4 {[%clk 0:04:03.1]}
19... dxc4 {[%clk 0:03:36.7]} 20. e3 {[%clk 0:04:01.3]} 20... Re6 {[%clk
0:03:27.3]} 21. Rd1 {[%clk 0:03:59.3]} 21... h6 {[%clk 0:03:19.5]} 22. Rd4
{[%clk 0:03:57.5]} 22... Rb4 {[%clk 0:03:09.3]} 23. Rc3 {[%clk 0:03:44.4]} 23...
Rc6 {[%clk 0:03:02.5]} 24. Kg2 {[%clk 0:03:40.8]} 24... a5 {[%clk 0:03:01.3]}
25. Rd5 {[%clk 0:03:33.5]} 25... a4 {[%clk 0:02:54.4]} 26. Ra5 {[%clk
0:03:30.9]} 26... Ra6 {[%clk 0:02:41]} 27. Rc5 {[%clk 0:03:23.1]} 27... Rc6
{[%clk 0:02:37.1]} 28. Ra5 {[%clk 0:03:11.3]} 28... Ra6 {[%clk 0:02:35.6]} 29.
Rc5 {[%clk 0:03:02.2]} 29... Rc6 {[%clk 0:02:34.3]} 30. Ra5 {[%clk 0:03:01.1]}
1/2-1/2

[Event "Live Chess"]
[Site "Chess.com"]
[Date "2024.06.01"]
[Round "-"]
[White "Queensandpawns"]
[Black "yarek"]
[Result "1-0"]
[WhiteElo "2387"]
[BlackElo "1732"]
[TimeControl "300"]
[EndTime "12:24:59 PDT"]
[Termination "Queensandpawns won by resignation"]

1. e4 {[%clk 0:04:59.6]} 1... g6 {[%clk 0:04:57.1]} 2. d4 {[%clk 0:04:58.6]}
2... Bg7 {[%clk 0:04:56.7]} 3. Nc3 {[%clk 0:04:57.6]} 3... c6 {[%clk 0:04:54.8]}
4. Nf3 {[%clk 0:04:55.8]} 4... d5 {[%clk 0:04:54.1]} 5. e5 {[%clk 0:04:55.4]}
5... Bg4 {[%clk 0:04:50]} 6. Be2 {[%clk 0:04:54.4]} 6... e6 {[%clk 0:04:49.2]}
7. Be3 {[%clk 0:04:53.9]} 7... Ne7 {[%clk 0:04:46.5]} 8. Qd2 {[%clk 0:04:53.6]}
8... h5 {[%clk 0:04:43.5]} 9. O-O-O {[%clk 0:04:53.5]} 9... Nd7 {[%clk
0:04:35.7]} 10. h3 {[%clk 0:04:52.2]} 10... Bf5 {[%clk 0:04:31.7]} 11. Ng5
{[%clk 0:04:49.6]} 11... Qa5 {[%clk 0:04:20.4]} 12. g4 {[%clk 0:04:42.4]} 12...
hxg4 {[%clk 0:04:17.9]} 13. hxg4 {[%clk 0:04:42.3]} 13... Be4 {[%clk 0:04:03]}
14. Ncxe4 {[%clk 0:04:38.4]} 14... dxe4 {[%clk 0:03:59.6]} 15. Nxe4 {[%clk
0:04:38.3]} 15... Qxa2 {[%clk 0:03:57.4]} 16. Nd6+ {[%clk 0:04:26.7]} 16... Kf8
{[%clk 0:03:42]} 17. Rxh8+ {[%clk 0:04:26.6]} 17... Bxh8 {[%clk 0:03:39.9]} 18.
Qb4 {[%clk 0:04:25.4]} 18... Nd5 {[%clk 0:03:22.2]} 19. Qxb7 {[%clk 0:04:22.4]}
19... Rd8 {[%clk 0:02:47.8]} 20. Bc4 {[%clk 0:04:18.8]} 20... Qxc4 {[%clk
0:02:02.2]} 21. Nxc4 {[%clk 0:04:15.6]} 1-0

[Event "Live Chess"]
[Site "Chess.com"]
[Date "2024.06.01"]
[Round "-"]
[White "LL220284LL"]
[Black "Nazar-Makarchuk"]
[Result "1-0"]
[WhiteElo "2549"]
[BlackElo "1506"]
[TimeControl "300"]
[EndTime "12:25:40 PDT"]
[Termination "LL220284LL won by resignation"]

1. g3 {[%clk 0:04:57.4]} 1... Nf6 {[%clk 0:04:58.5]} 2. Bg2 {[%clk 0:04:57.3]}
2... d5 {[%clk 0:04:57.9]} 3. Nf3 {[%clk 0:04:56.4]} 3... Nc6 {[%clk 0:04:57.4]}
4. O-O {[%clk 0:04:56.2]} 4... e5 {[%clk 0:04:56.9]} 5. d3 {[%clk 0:04:54.7]}
5... e4 {[%clk 0:04:55.9]} 6. dxe4 {[%clk 0:04:53.8]} 6... dxe4 {[%clk
0:04:55.5]} 7. Qxd8+ {[%clk 0:04:53.7]} 7... Kxd8 {[%clk 0:04:53.4]} 8. Ng5
{[%clk 0:04:52.8]} 8... Ke7 {[%clk 0:04:51.9]} 9. Nxe4 {[%clk 0:04:51.7]} 9...
Nxe4 {[%clk 0:04:50.5]} 10. Bxe4 {[%clk 0:04:51.6]} 10... Bd7 {[%clk 0:04:49.7]}
11. Nc3 {[%clk 0:04:50.5]} 11... f6 {[%clk 0:04:47.9]} 12. Nd5+ {[%clk
0:04:49.7]} 12... Kd6 {[%clk 0:04:46.5]} 13. Bf4+ {[%clk 0:04:48.8]} 13... Kc5
{[%clk 0:04:44.5]} 14. c3 {[%clk 0:04:46.4]} 14... Bd6 {[%clk 0:04:43.1]} 15.
b4+ {[%clk 0:04:45.6]} 15... Kc4 {[%clk 0:04:37.1]} 16. Ne3+ {[%clk 0:04:44.9]}
16... Kxc3 {[%clk 0:04:34.3]} 17. Rfc1+ {[%clk 0:04:43.1]} 17... Kxb4 {[%clk
0:04:31.9]} 18. Nd5+ {[%clk 0:04:40.2]} 18... Ka5 {[%clk 0:04:28.5]} 19. Bd2+
{[%clk 0:04:38]} 19... Ka6 {[%clk 0:04:26.2]} 20. Bd3+ {[%clk 0:04:36.4]} 20...
b5 {[%clk 0:04:23.6]} 21. a4 {[%clk 0:04:35]} 21... Ne5 {[%clk 0:04:17.7]} 22.
axb5+ {[%clk 0:04:23.1]} 22... Kb7 {[%clk 0:04:16.7]} 23. Be4 {[%clk 0:04:22.8]}
23... Bxb5 {[%clk 0:04:11.6]} 24. Nxc7+ {[%clk 0:04:20.2]} 24... Kb8 {[%clk
0:04:06.1]} 25. Nxb5 {[%clk 0:04:19.3]} 1-0

[Event "Live Chess"]
[Site "Chess.com"]
[Date "2024.06.01"]
[Round "-"]
[White "gobbles19"]
[Black "vincents82"]
[Result "1-0"]
[WhiteElo "2244"]
[BlackElo "2098"]
[TimeControl "300"]
[EndTime "12:25:51 PDT"]
[Termination "gobbles19 won by resignation"]

1. e4 {[%clk 0:04:57.4]} 1... d5 {[%clk 0:04:57.4]} 2. exd5 {[%clk 0:04:55.1]}
2... Qxd5 {[%clk 0:04:54.2]} 3. Nc3 {[%clk 0:04:53.7]} 3... Qd8 {[%clk
0:04:53.1]} 4. d4 {[%clk 0:04:51.1]} 4... Nf6 {[%clk 0:04:52.2]} 5. Bc4 {[%clk
0:04:47.8]} 5... a6 {[%clk 0:04:50.7]} 6. Nf3 {[%clk 0:04:44.6]} 6... b5 {[%clk
0:04:49.4]} 7. Bb3 {[%clk 0:04:35.7]} 7... c5 {[%clk 0:04:45.3]} 8. dxc5 {[%clk
0:04:32.3]} 8... Qxd1+ {[%clk 0:04:43.9]} 9. Nxd1 {[%clk 0:04:31.9]} 9... e6
{[%clk 0:04:43.3]} 10. Be3 {[%clk 0:04:25.5]} 10... Bb7 {[%clk 0:04:41.8]} 11.
a4 {[%clk 0:04:09.8]} 11... b4 {[%clk 0:04:31.5]} 12. O-O {[%clk 0:03:52]} 12...
Nfd7 {[%clk 0:04:28]} 13. Bd2 {[%clk 0:03:36.7]} 13... Nc6 {[%clk 0:04:18.7]}
14. Ne3 {[%clk 0:03:33.6]} 14... Bxc5 {[%clk 0:04:14.1]} 15. a5 {[%clk
0:03:29.9]} 15... O-O {[%clk 0:04:10.8]} 16. Rfe1 {[%clk 0:03:22.3]} 16... Rfd8
{[%clk 0:04:06.4]} 17. Ng4 {[%clk 0:03:18.8]} 17... h5 {[%clk 0:03:50.6]} 18.
Ne3 {[%clk 0:03:08.5]} 18... Be7 {[%clk 0:03:44.4]} 19. Nc4 {[%clk 0:03:05.9]}
19... Nc5 {[%clk 0:03:36.3]} 20. Be3 {[%clk 0:02:55.8]} 20... Nxb3 {[%clk
0:03:33.9]} 21. cxb3 {[%clk 0:02:55.7]} 21... Bf6 {[%clk 0:03:21.2]} 22. Rad1
{[%clk 0:02:52.7]} 22... Rxd1 {[%clk 0:03:02.4]} 23. Rxd1 {[%clk 0:02:52.6]}
23... Rd8 {[%clk 0:02:52.3]} 24. Rd2 {[%clk 0:02:31.3]} 24... Rxd2 {[%clk
0:02:41.9]} 25. Bxd2 {[%clk 0:02:25.4]} 25... Bd8 {[%clk 0:02:39.5]} 26. Kf1
{[%clk 0:02:20.2]} 26... Nxa5 {[%clk 0:02:32.5]} 27. Bxb4 {[%clk 0:02:17.4]}
27... Bd5 {[%clk 0:02:15]} 28. Nxa5 {[%clk 0:02:13.4]} 1-0

[Event "Live Chess"]
[Site "Chess.com"]
[Date "2024.06.01"]
[Round "-"]
[White "MaximKovalenko83"]
[Black "MaksymYurii"]
[Result "1-0"]
[WhiteElo "2225"]
[BlackElo "933"]
[TimeControl "300"]
[EndTime "12:26:19 PDT"]
[Termination "MaximKovalenko83 won by resignation"]

1. e4 {[%clk 0:04:54.8]} 1... e5 {[%clk 0:04:59.4]} 2. Nf3 {[%clk 0:04:52.8]}
2... Nc6 {[%clk 0:04:58.4]} 3. Bc4 {[%clk 0:04:51]} 3... Nf6 {[%clk 0:04:53.7]}
4. O-O {[%clk 0:04:49.1]} 4... d5 {[%clk 0:04:50.2]} 5. exd5 {[%clk 0:04:47.5]}
5... Nxd5 {[%clk 0:04:48.9]} 6. d4 {[%clk 0:04:44.6]} 6... exd4 {[%clk
0:04:45.7]} 7. Nxd4 {[%clk 0:04:42.8]} 7... Nxd4 {[%clk 0:04:43.4]} 8. Re1+
{[%clk 0:04:40.7]} 8... Be7 {[%clk 0:04:40.5]} 9. Qxd4 {[%clk 0:04:38.2]} 9...
Be6 {[%clk 0:04:31.2]} 10. Qxg7 {[%clk 0:04:26.4]} 10... Rf8 {[%clk 0:04:22.9]}
11. Bh6 {[%clk 0:04:20.6]} 11... Qd6 {[%clk 0:04:11.7]} 12. Qxh7 {[%clk
0:04:16.1]} 12... O-O-O {[%clk 0:04:09.8]} 13. Bxf8 {[%clk 0:04:14.2]} 13...
Bxf8 {[%clk 0:04:07.9]} 14. Bxd5 {[%clk 0:04:07.8]} 14... Bxd5 {[%clk
0:04:04.8]} 15. Nc3 {[%clk 0:04:05.2]} 15... Be7 {[%clk 0:03:56.8]} 16. Nxd5
{[%clk 0:04:00.2]} 16... Qxd5 {[%clk 0:03:54.5]} 17. Rxe7 {[%clk 0:03:57.2]}
17... Qd1+ {[%clk 0:03:47.5]} 18. Re1 {[%clk 0:03:55.7]} 18... Qxc2 {[%clk
0:03:36.5]} 1-0

[Event "Live Chess"]
[Site "Chess.com"]
[Date "2024.06.01"]
[Round "-"]
[White "dhairyapandyauk"]
[Black "chessfiction"]
[Result "0-1"]
[WhiteElo "1656"]
[BlackElo "2411"]
[TimeControl "300"]
[EndTime "12:26:36 PDT"]
[Termination "chessfiction won by checkmate"]

1. e4 {[%clk 0:04:57.3]} 1... c6 {[%clk 0:04:55.5]} 2. d4 {[%clk 0:04:54.9]}
2... d5 {[%clk 0:04:55.4]} 3. exd5 {[%clk 0:04:54.5]} 3... cxd5 {[%clk
0:04:53.4]} 4. Bf4 {[%clk 0:04:54.1]} 4... Nf6 {[%clk 0:04:52.5]} 5. Nc3 {[%clk
0:04:53.7]} 5... Nc6 {[%clk 0:04:51.9]} 6. Nb5 {[%clk 0:04:53]} 6... e5 {[%clk
0:04:38.6]} 7. dxe5 {[%clk 0:04:52.4]} 7... Ne4 {[%clk 0:04:19.6]} 8. e6 {[%clk
0:04:50.9]} 8... Bc5 {[%clk 0:03:53.9]} 9. Nc7+ {[%clk 0:04:36.2]} 9... Kf8
{[%clk 0:03:49.2]} 10. Nxa8 {[%clk 0:04:35.4]} 10... Bxf2+ {[%clk 0:03:36.1]}
11. Ke2 {[%clk 0:04:34.1]} 11... Bxe6 {[%clk 0:03:35.3]} 12. Nc7 {[%clk
0:04:20]} 12... Bg4+ {[%clk 0:03:20.9]} 13. Nf3 {[%clk 0:04:17.9]} 13... g5
{[%clk 0:03:05.5]} 14. Qxd5 {[%clk 0:04:02.2]} 14... Nd4+ {[%clk 0:02:05.8]} 15.
Kd3 {[%clk 0:03:51.6]} 15... Qxd5 {[%clk 0:01:27.6]} 16. Nxd5 {[%clk 0:03:50.2]}
16... Nxf3 {[%clk 0:01:26.7]} 17. Kxe4 {[%clk 0:03:48.7]} 17... f5+ {[%clk
0:01:16.6]} 18. Kd3 {[%clk 0:03:47.3]} 18... gxf4 {[%clk 0:01:12.4]} 19. gxf3
{[%clk 0:03:45.5]} 19... Bxf3 {[%clk 0:01:12.3]} 20. Bh3 {[%clk 0:03:39.4]}
20... Bxd5 {[%clk 0:01:10.8]} 21. Rhf1 {[%clk 0:03:35.3]} 21... Be3 {[%clk
0:01:09.1]} 22. Bxf5 {[%clk 0:03:33.7]} 22... Ke7 {[%clk 0:01:06.2]} 23. Be4
{[%clk 0:03:31.5]} 23... Be6 {[%clk 0:01:04.8]} 24. c3 {[%clk 0:03:27.7]} 24...
Rd8+ {[%clk 0:01:04.3]} 25. Kc2 {[%clk 0:03:25.9]} 25... Rd2+ {[%clk 0:01:04.2]}
26. Kb1 {[%clk 0:03:22.9]} 26... Bc4 {[%clk 0:01:03.3]} 27. Re1 {[%clk
0:03:12.7]} 27... Kd6 {[%clk 0:00:58.1]} 28. Bc2 {[%clk 0:03:00.9]} 28... Be2
{[%clk 0:00:55.4]} 29. b3 {[%clk 0:02:53.3]} 29... f3 {[%clk 0:00:53.8]} 30. Kb2
{[%clk 0:02:46.8]} 30... f2 {[%clk 0:00:52.8]} 31. Rxe2 {[%clk 0:02:20]} 31...
Rxe2 {[%clk 0:00:51]} 32. Rd1+ {[%clk 0:02:18.2]} 32... Ke5 {[%clk 0:00:46.8]}
33. Rf1 {[%clk 0:02:09.9]} 33... Kf4 {[%clk 0:00:35.2]} 34. b4 {[%clk
0:02:02.5]} 34... Kf3 {[%clk 0:00:30]} 35. Kb3 {[%clk 0:02:01.3]} 35... Kg2
{[%clk 0:00:28]} 36. Rd1 {[%clk 0:01:50.4]} 36... Re1 {[%clk 0:00:24.9]} 37.
Be4+ {[%clk 0:01:42.4]} 37... Kg1 {[%clk 0:00:23.4]} 38. Bd3 {[%clk 0:01:33.6]}
38... Rxd1 {[%clk 0:00:22]} 39. Bc4 {[%clk 0:01:31.9]} 39... f1=Q {[%clk
0:00:21.1]} 40. Bxf1 {[%clk 0:01:30.9]} 40... Rxf1 {[%clk 0:00:19.8]} 41. a4
{[%clk 0:01:30.5]} 41... Rf2 {[%clk 0:00:19.1]} 42. Kc4 {[%clk 0:01:29.3]} 42...
Rxh2 {[%clk 0:00:19]} 43. a5 {[%clk 0:01:26.8]} 43... Ra2 {[%clk 0:00:18.1]} 44.
Kb5 {[%clk 0:01:25.9]} 44... h5 {[%clk 0:00:17.5]} 45. c4 {[%clk 0:01:24.6]}
45... h4 {[%clk 0:00:17.4]} 46. c5 {[%clk 0:01:24.1]} 46... h3 {[%clk
0:00:17.3]} 47. c6 {[%clk 0:01:23.5]} 47... h2 {[%clk 0:00:17.2]} 48. cxb7
{[%clk 0:01:21.4]} 48... h1=Q {[%clk 0:00:17.1]} 49. b8=Q {[%clk 0:01:20.3]}
49... Qd5+ {[%clk 0:00:13]} 50. Ka6 {[%clk 0:01:17]} 50... Qc6+ {[%clk
0:00:11.8]} 51. Qb6 {[%clk 0:01:16]} 51... Qxb6# {[%clk 0:00:09.3]} 0-1

[Event "Live Chess"]
[Site "Chess.com"]
[Date "2024.06.01"]
[Round "-"]
[White "Demyan7777"]
[Black "Duke_of_Bebington"]
[Result "1-0"]
[WhiteElo "1859"]
[BlackElo "1584"]
[TimeControl "300"]
[EndTime "12:26:38 PDT"]
[Termination "Demyan7777 won by resignation"]

1. e4 {[%clk 0:04:57.3]} 1... e5 {[%clk 0:04:59.2]} 2. Nf3 {[%clk 0:04:55.6]}
2... Nf6 {[%clk 0:04:58.1]} 3. Nxe5 {[%clk 0:04:53.9]} 3... d6 {[%clk
0:04:55.5]} 4. Nf3 {[%clk 0:04:52.9]} 4... Nxe4 {[%clk 0:04:54.4]} 5. Nc3 {[%clk
0:04:52.5]} 5... Nxc3 {[%clk 0:04:52.2]} 6. dxc3 {[%clk 0:04:52.2]} 6... Nc6
{[%clk 0:04:49.6]} 7. Be3 {[%clk 0:04:49.7]} 7... Bf5 {[%clk 0:04:43.9]} 8. Bd3
{[%clk 0:04:47.2]} 8... Bxd3 {[%clk 0:04:42.1]} 9. cxd3 {[%clk 0:04:45.3]} 9...
Be7 {[%clk 0:04:41.5]} 10. d4 {[%clk 0:04:43.5]} 10... d5 {[%clk 0:04:39.8]} 11.
Qd3 {[%clk 0:04:40.1]} 11... O-O {[%clk 0:04:37.8]} 12. O-O {[%clk 0:04:34.6]}
12... Bf6 {[%clk 0:04:33.3]} 13. Rfe1 {[%clk 0:04:31.6]} 13... Re8 {[%clk
0:04:12.8]} 14. Bf4 {[%clk 0:04:28.7]} 14... Ne7 {[%clk 0:04:09.7]} 15. Be5
{[%clk 0:04:24.1]} 15... Ng6 {[%clk 0:04:07.2]} 16. Bg3 {[%clk 0:04:19.6]} 16...
c6 {[%clk 0:04:00]} 17. Re3 {[%clk 0:04:18.3]} 17... Qd7 {[%clk 0:03:58]} 18.
Rae1 {[%clk 0:04:16.5]} 18... Re6 {[%clk 0:03:57.5]} 19. Rxe6 {[%clk 0:04:13.7]}
19... fxe6 {[%clk 0:03:57.4]} 20. Qe3 {[%clk 0:04:12]} 20... Re8 {[%clk
0:03:55.3]} 21. h4 {[%clk 0:04:08.8]} 21... h6 {[%clk 0:03:41.1]} 22. h5 {[%clk
0:04:04]} 22... Nf8 {[%clk 0:03:40]} 23. Be5 {[%clk 0:03:55.7]} 23... Qe7 {[%clk
0:03:33.5]} 24. Bxf6 {[%clk 0:03:49.9]} 24... Qxf6 {[%clk 0:03:32.6]} 25. Ne5
{[%clk 0:03:49.1]} 25... Qf5 {[%clk 0:03:19.5]} 26. g4 {[%clk 0:03:46.6]} 26...
Qc2 {[%clk 0:03:16.1]} 27. Qe2 {[%clk 0:03:45.4]} 27... Qxe2 {[%clk 0:03:10]}
28. Rxe2 {[%clk 0:03:43.5]} 28... Re7 {[%clk 0:03:07.7]} 29. Kg2 {[%clk
0:03:39.9]} 29... Rf7 {[%clk 0:03:02.8]} 30. Nxf7 {[%clk 0:03:38.5]} 30... Kxf7
{[%clk 0:03:01.7]} 31. f4 {[%clk 0:03:37.5]} 31... Nd7 {[%clk 0:03:00]} 32. Kf3
{[%clk 0:03:36.3]} 32... c5 {[%clk 0:02:57.6]} 33. f5 {[%clk 0:03:32.9]} 33...
exf5 {[%clk 0:02:55]} 34. gxf5 {[%clk 0:03:31.7]} 34... Kf6 {[%clk 0:02:54.2]}
35. Kf4 {[%clk 0:03:29.4]} 35... Nf8 {[%clk 0:02:45.9]} 36. dxc5 {[%clk
0:03:26.7]} 36... Nd7 {[%clk 0:02:41.5]} 37. Re6+ {[%clk 0:03:25.4]} 37... Kf7
{[%clk 0:02:39.8]} 38. c6 {[%clk 0:03:21.5]} 38... bxc6 {[%clk 0:02:38.2]} 39.
Rxc6 {[%clk 0:03:20.3]} 39... Nf6 {[%clk 0:02:37.7]} 40. Rc7+ {[%clk 0:03:19.4]}
40... Ke8 {[%clk 0:02:35.9]} 1-0

[Event "Live Chess"]
[Site "Chess.com"]
[Date "2024.06.01"]
[Round "-"]
[White "bobby_jamesFischer86"]
[Black "missedJariChance"]
[Result "1-0"]
[WhiteElo "1621"]
[BlackElo "1341"]
[TimeControl "300"]
[EndTime "12:26:48 PDT"]
[Termination "bobby_jamesFischer86 won by checkmate"]

1. d4 {[%clk 0:04:56.8]} 1... d5 {[%clk 0:04:58.2]} 2. c4 {[%clk 0:04:45.9]}
2... e6 {[%clk 0:04:56.5]} 3. Nc3 {[%clk 0:04:33.9]} 3... Nf6 {[%clk 0:04:55]}
4. Nf3 {[%clk 0:04:32.1]} 4... c5 {[%clk 0:04:52.5]} 5. e3 {[%clk 0:04:27.1]}
5... cxd4 {[%clk 0:04:48.2]} 6. Nxd4 {[%clk 0:04:25.4]} 6... Nc6 {[%clk
0:04:46.6]} 7. cxd5 {[%clk 0:04:23]} 7... Nxd5 {[%clk 0:04:42.7]} 8. Nxd5 {[%clk
0:04:19.5]} 8... Qxd5 {[%clk 0:04:40.6]} 9. Be2 {[%clk 0:04:14.5]} 9... Bb4+
{[%clk 0:04:36.2]} 10. Bd2 {[%clk 0:04:10.5]} 10... Bxd2+ {[%clk 0:04:28.4]} 11.
Qxd2 {[%clk 0:04:09]} 11... O-O {[%clk 0:04:26]} 12. O-O {[%clk 0:04:06.7]}
12... Ne5 {[%clk 0:04:08.4]} 13. Rac1 {[%clk 0:03:57.1]} 13... Bd7 {[%clk
0:04:05]} 14. Nb3 {[%clk 0:03:38.5]} 14... Qxd2 {[%clk 0:03:55.1]} 15. Nxd2
{[%clk 0:03:35.2]} 15... Bc6 {[%clk 0:03:52.8]} 16. f3 {[%clk 0:03:27.3]} 16...
Rad8 {[%clk 0:03:50.3]} 17. Nc4 {[%clk 0:03:18.6]} 17... Nxc4 {[%clk 0:03:34.4]}
18. Bxc4 {[%clk 0:03:16]} 18... Rd2 {[%clk 0:03:32.6]} 19. Rfd1 {[%clk
0:02:49.3]} 19... Rfd8 {[%clk 0:03:29.3]} 20. Bb3 {[%clk 0:02:42.6]} 20... h6
{[%clk 0:03:24.2]} 21. e4 {[%clk 0:02:16.6]} 21... a6 {[%clk 0:03:09.5]} 22.
Rxd2 {[%clk 0:01:51.3]} 22... Rxd2 {[%clk 0:03:07.2]} 23. Rd1 {[%clk 0:01:49.8]}
23... Rxb2 {[%clk 0:03:01.9]} 24. Rd8+ {[%clk 0:01:46.3]} 24... Kh7 {[%clk
0:03:00.1]} 25. Rf8 {[%clk 0:01:44.7]} 25... Kg6 {[%clk 0:02:58.5]} 26. Rb8
{[%clk 0:01:26.7]} 26... Rd2 {[%clk 0:02:53.9]} 27. h4 {[%clk 0:01:17]} 27...
Kh5 {[%clk 0:02:50.5]} 28. g3 {[%clk 0:01:10.3]} 28... Rd3 {[%clk 0:02:47.7]}
29. Kf2 {[%clk 0:01:08.8]} 29... Rd2+ {[%clk 0:02:41.7]} 30. Ke3 {[%clk
0:01:06.9]} 30... Rg2 {[%clk 0:02:39.9]} 31. Kf4 {[%clk 0:00:53.7]} 31... f6
{[%clk 0:02:32]} 32. Bxe6 {[%clk 0:00:37.8]} 32... g5+ {[%clk 0:02:13.2]} 33.
hxg5 {[%clk 0:00:33.5]} 33... hxg5+ {[%clk 0:02:11.6]} 34. Kf5 {[%clk
0:00:30.3]} 34... Rxg3 {[%clk 0:02:08.9]} 35. Rh8# {[%clk 0:00:27.8]} 1-0

[Event "Live Chess"]
[Site "Chess.com"]
[Date "2024.06.01"]
[Round "-"]
[White "educatedlad"]
[Black "WorcesterYork"]
[Result "0-1"]
[WhiteElo "1764"]
[BlackElo "2514"]
[TimeControl "300"]
[EndTime "12:26:51 PDT"]
[Termination "WorcesterYork won by checkmate"]

1. d4 {[%clk 0:04:55.4]} 1... c5 {[%clk 0:04:59.9]} 2. d5 {[%clk 0:04:54.1]}
2... d6 {[%clk 0:04:59.1]} 3. Nc3 {[%clk 0:04:52.4]} 3... g6 {[%clk 0:04:59]} 4.
e4 {[%clk 0:04:51.5]} 4... Bg7 {[%clk 0:04:57.6]} 5. Bc4 {[%clk 0:04:44.9]} 5...
Nf6 {[%clk 0:04:56.9]} 6. Qe2 {[%clk 0:04:40.2]} 6... O-O {[%clk 0:04:56.5]} 7.
Nf3 {[%clk 0:04:38.3]} 7... Bg4 {[%clk 0:04:55.4]} 8. h3 {[%clk 0:04:37.1]} 8...
Bxf3 {[%clk 0:04:54.8]} 9. Qxf3 {[%clk 0:04:36.7]} 9... Nbd7 {[%clk 0:04:53.6]}
10. Bd2 {[%clk 0:04:33.4]} 10... a6 {[%clk 0:04:53.2]} 11. a4 {[%clk 0:04:32.2]}
11... Ne5 {[%clk 0:04:52.5]} 12. Qe2 {[%clk 0:04:30.6]} 12... Nxc4 {[%clk
0:04:52.4]} 13. Qxc4 {[%clk 0:04:30]} 13... Rb8 {[%clk 0:04:52.2]} 14. a5 {[%clk
0:04:27.9]} 14... Nd7 {[%clk 0:04:49.6]} 15. O-O {[%clk 0:04:25.5]} 15... Qc7
{[%clk 0:04:39]} 16. f4 {[%clk 0:04:23]} 16... b5 {[%clk 0:04:35.9]} 17. axb6
{[%clk 0:04:20.4]} 17... Rxb6 {[%clk 0:04:35]} 18. Rxa6 {[%clk 0:04:17.6]} 18...
Rxb2 {[%clk 0:04:33.4]} 19. Rc6 {[%clk 0:04:15.6]} 19... Qb7 {[%clk 0:04:31.9]}
20. Na4 {[%clk 0:04:06.3]} 20... Rb5 {[%clk 0:04:22.9]} 21. Rc7 {[%clk
0:03:59.5]} 21... Qxc7 {[%clk 0:04:21.3]} 22. Qxb5 {[%clk 0:03:58.3]} 22... Rb8
{[%clk 0:04:20.4]} 23. Ba5 {[%clk 0:03:48.8]} 23... Qa7 {[%clk 0:04:14.2]} 24.
Nb6 {[%clk 0:03:38.5]} 24... Nxb6 {[%clk 0:04:12.6]} 25. Bxb6 {[%clk 0:03:36.4]}
25... Qxb6 {[%clk 0:04:11.8]} 26. Qd7 {[%clk 0:03:35.2]} 26... Qb7 {[%clk
0:04:10.4]} 27. Qg4 {[%clk 0:03:31.2]} 27... Qb2 {[%clk 0:04:07.1]} 28. f5
{[%clk 0:03:29.1]} 28... Qxc2 {[%clk 0:04:05.6]} 29. fxg6 {[%clk 0:03:26.6]}
29... hxg6 {[%clk 0:04:05.5]} 30. Qf4 {[%clk 0:03:23.2]} 30... Bf6 {[%clk
0:04:04.5]} 31. g4 {[%clk 0:03:20]} 31... Rb2 {[%clk 0:04:03]} 32. g5 {[%clk
0:03:15.6]} 32... Qg2# {[%clk 0:04:01.4]} 0-1